bitfinex-derivatives/quotes_ETHF0:USTF0_20240817
["timestamp","ask_amount","ask_price","bid_price","bid_amount"]
[1723889113528,1.106,2604.9,2604.8,0.7043]
[1723889113922,1.106,2604.9,2604.8,4.5435]
[1723889114229,1.11040789,2604.9,2604.8,4.54822267]
[1723889114429,1.11040789,2604.9,2604.8,0.70902267]
[1723889114732,1.11040789,2604.9,2604.8,4.54822267]
[1723889116421,1.11040789,2604.9,2604.8,1.06822267]
[1723889126438,1.11040789,2604.9,2604.8,0.71682267]
[1723889127427,1.45400789,2604.9,2604.8,0.71682267]
[1723889128733,1.11040789,2604.9,2604.8,0.71682267]
[1723889130337,0.00440789,2604.9,2604.8,2.15616267]
[1723889130531,0.00440789,2604.9,2604.8,7.10136267]
[1723889130731,0.00440789,2604.9,2604.8,12.10136267]
[1723889135041,0.00440789,2604.9,2604.8,7.10136267]
[1723889138033,0.00440789,2604.9,2604.8,10.30916267]
[1723889139538,0.00440789,2604.9,2604.8,15.30916267]
[1723889139743,0.00576026,2605.1,2605.0,1.43923]
[1723889139935,0.00576026,2605.1,2605.0,2.54523]
[1723889140138,0.00576026,2605.1,2605.0,6.38363]
[1723889140639,0.01052819,2605.1,2605.0,6.38363]
[1723889145154,0.01052819,2605.1,2605.0,6.76183]
[1723889147558,2.97853575,2605.7,2605.4,1.106]
[1723889147747,2.97853575,2605.7,2605.5,0.7242]
[1723889148663,2.98309048,2605.7,2605.5,0.7242]
[1723889152258,1.106,2605.6,2605.3,0.00576026]
[1723889152750,0.3569,2605.5,2605.3,0.00576026]
[1723889163962,0.3587,2605.4,2605.3,0.00576026]
[1723889164350,0.3569,2605.5,2605.3,0.00576026]
[1723889167465,0.3569,2605.5,2605.4,1.106]
[1723889167760,3.34179048,2605.7,2605.4,1.106]
[1723889167958,3.70289048,2605.7,2605.4,1.106]
[1723889168157,2.59689048,2605.7,2605.4,1.106]
[1723889169153,1.51063575,2605.6,2605.4,1.106]
[1723889169558,2.59689048,2605.7,2605.4,1.106]
[1723889169759,2.59689048,2605.7,2605.5,0.3496]
[1723889169965,1.51063575,2605.6,2605.5,0.3496]
[1723889171960,1.51063575,2605.6,2605.4,1.106]
[1723889172163,1.106,2605.5,2605.3,0.00576026]
[1723889172362,1.106,2605.4,2605.3,0.00576026]
[1723889172664,9.59119,2605.4,2605.3,0.00576026]
[1723889172962,11.60657084,2605.4,2605.3,0.00576026]
[1723889175365,9.06158084,2605.4,2605.3,0.00576026]
[1723889175567,10.16758084,2605.4,2605.3,0.00576026]
[1723889176067,3.12138084,2605.4,2605.3,0.00576026]
[1723889179969,6.95978084,2605.4,2605.3,0.00576026]
[1723889184768,6.95978084,2605.4,2605.3,0.35666026]
[1723889186275,3.12138084,2605.4,2605.3,0.35666026]
[1723889186964,6.95978084,2605.4,2605.3,0.35666026]
[1723889188372,6.95978084,2605.4,2605.3,0.00576026]
[1723889191483,3.12138084,2605.4,2605.3,0.00576026]
[1723889193883,4.9444,2605.4,2605.3,0.00576026]
[1723889197581,6.95675269,2605.4,2605.3,0.00576026]
[1723889199188,6.95675755,2605.4,2605.3,0.00576026]
[1723889199584,4.9444,2605.4,2605.3,0.00576026]
[1723889201680,8.9030573,2605.4,2605.3,0.00576026]
[1723889201880,7.4640673,2605.4,2605.3,0.00576026]
[1723889203994,13.9030573,2605.4,2605.3,0.00576026]
[1723889204182,1.43927,2604.9,2604.8,0.72862267]
[1723889204386,1.43927,2604.9,2604.8,0.37332267]
[1723889204387,4.55803813,2604.9,2604.8,0.37332267]
[1723889204690,9.9452,2604.9,2604.3,2.50199267]
[1723889204994,1.50945515,2604.4,2604.3,1.35570388]
[1723889205190,1.50945515,2604.5,2604.4,1.43954]
[1723889205385,1.50945515,2604.6,2604.4,3.54899307]
[1723889205587,1.50945515,2604.7,2604.5,0.3705]
[1723889205888,1.50945515,2604.7,2604.6,0.3739]
[1723889208394,2.61545515,2604.8,2604.6,0.3739]
[1723889208796,2.61545515,2604.8,2604.7,0.3487]
[1723889208991,1.106,2604.8,2604.7,0.3487]
[1723889209295,2.61344436,2604.8,2604.7,0.3487]
[1723889211791,1.106,2604.8,2604.7,0.3487]
[1723889211998,2.54532,2604.8,2604.7,0.3487]
[1723889213296,4.05204386,2604.8,2604.7,0.3487]
[1723889217497,2.54532,2604.8,2604.7,0.3487]
[1723889219099,1.43938,2604.7,2604.6,0.3739]
[1723889219394,2.91148,2604.7,2604.6,0.3739]
[1723889220591,1.43943,2604.6,2604.5,0.3786]
[1723889220793,1.43943,2604.6,2604.4,0.36880884]
[1723889220794,1.43949,2604.5,2604.4,0.36880884]
[1723889220997,2.54549,2604.5,2604.4,0.36880884]
[1723889221197,6.38469,2604.5,2604.4,0.36880884]
[1723889224904,8.25840367,2604.5,2604.4,0.00400884]
[1723889225405,11.75199,2604.5,2604.4,0.00400884]
[1723889225701,13.2574444,2604.5,2604.4,0.00400884]
[1723889227305,6.75199,2604.5,2604.4,0.00400884]
[1723889227604,8.2574444,2604.5,2604.4,0.00400884]
[1723889228304,13.2574444,2604.5,2604.4,0.00400884]
[1723889228800,1.43954,2604.4,2604.3,0.00576026]
[1723889229000,5.64134,2604.4,2604.3,0.00576026]
[1723889229799,5.64134,2604.4,2604.3,0.01042525]
[1723889232104,7.1467944,2604.4,2604.3,0.01042525]
[1723889232805,12.1467944,2604.4,2604.3,0.01042525]
[1723889233102,7.1467944,2604.4,2604.3,0.01042525]
[1723889233311,5.64134,2604.4,2604.3,0.01042525]
[1723889234108,7.1467944,2604.4,2604.3,0.01042525]
[1723889235202,5.64134,2604.4,2604.3,0.01042525]
[1723889238403,13.5863344,2604.4,2604.3,0.01042525]
[1723889239811,10.27954,2604.4,2604.3,0.01042525]
[1723889240118,6.38554,2604.4,2604.3,0.01042525]
[1723889242016,7.8909944,2604.4,2604.3,0.01042525]
[1723889246113,6.38554,2604.4,2604.3,0.01042525]
[1723889246320,8.39814687,2604.4,2604.3,0.01042525]
[1723889246521,11.72964,2604.4,2604.1,0.3754]
[1723889246722,5.75345,2604.2,2604.1,0.3754]
[1723889247222,9.59345,2604.2,2604.1,0.3754]
[1723889247419,11.60174344,2604.2,2604.1,0.3754]
[1723889247618,13.54885858,2604.2,2604.1,0.00494347]
[1723889248124,11.0331,2604.2,2604.1,0.00494347]
[1723889248721,1.43976,2604.0,2603.9,0.00576026]
[1723889249036,4.5547734,2604.0,2603.9,0.00576026]
[1723889249918,8.3947734,2604.0,2603.9,0.00964863]
[1723889250625,6.38576,2604.0,2603.9,0.00964863]
[1723889251126,8.39506191,2604.0,2603.9,0.00964863]
[1723889252625,1.43998,2603.6,2603.5,0.3585]
[1723889252832,2.54598,2603.6,2603.5,0.3585]
[1723889253330,4.0525268,2603.6,2603.5,0.3585]
[1723889253631,4.0567954,2603.6,2603.5,0.36250159]
[1723889253823,4.0567954,2603.6,2603.5,0.74020159]
[1723889254418,2.5502486,2603.6,2603.5,0.74020159]
[1723889254625,4.0567954,2603.6,2603.5,0.74020159]
[1723889255831,6.3910486,2603.6,2603.5,0.00400159]
[1723889256923,5.2850486,2603.6,2603.5,0.00400159]
[1723889257124,7.89679157,2603.6,2603.5,0.00400159]
[1723889260731,6.3910486,2603.6,2603.5,0.00400159]
[1723889260929,7.89679157,2603.6,2603.5,0.00400159]
[1723889261136,6.3910486,2603.6,2603.5,0.00400159]
[1723889261326,7.89679157,2603.6,2603.5,0.00400159]
[1723889262823,11.10459157,2603.6,2603.5,0.00400159]
[1723889263234,7.89679157,2603.6,2603.5,0.00400159]
[1723889263829,9.5988486,2603.6,2603.5,0.00400159]
[1723889264232,0.0042686,2603.6,2603.5,0.00400159]
[1723889264433,2.61601157,2603.6,2603.5,0.00400159]
[1723889264627,1.1102686,2603.6,2603.5,0.00400159]
[1723889264839,4.3180686,2603.6,2603.5,0.00400159]
[1723889265336,5.82381157,2603.6,2603.5,0.00400159]
[1723889268032,7.26379157,2603.6,2603.5,0.00400159]
[1723889271231,5.82381157,2603.6,2603.5,0.00400159]
[1723889271627,4.3180686,2603.6,2603.5,0.00400159]
[1723889272837,5.7580486,2603.6,2603.5,0.00400159]
[1723889274634,7.26379157,2603.6,2603.5,0.00400159]
[1723889275940,4.05599157,2603.6,2603.5,0.00400159]
[1723889276139,7.26379157,2603.6,2603.5,0.00400159]
[1723889277547,4.05599157,2603.6,2603.5,0.00400159]
[1723889278635,7.26379157,2603.6,2603.5,0.00400159]
[1723889284346,5.7580486,2603.6,2603.5,0.00400159]
[1723889287355,7.76717657,2603.6,2603.5,0.00400159]
[1723889290353,5.7580486,2603.6,2603.5,0.00400159]
[1723889291354,8.26948195,2603.6,2603.5,0.00400159]
[1723889292250,5.06168195,2603.6,2603.5,0.00400159]
[1723889293462,2.5502486,2603.6,2603.5,0.00400159]
[1723889300561,6.3910486,2603.6,2603.5,0.00400159]
[1723889304566,9.5988486,2603.6,2603.5,0.00400159]
[1723889307968,12.62237052,2603.6,2603.5,0.00400159]
[1723889309977,9.41457052,2603.6,2603.5,0.00400159]
[1723889310182,12.62237052,2603.6,2603.5,0.00400159]
[1723889311777,8.78157052,2603.6,2603.5,0.00400159]
[1723889311986,12.62237052,2603.6,2603.5,0.00400159]
[1723889312391,12.62237052,2603.6,2603.3,0.00576026]
[1723889312392,1.44009,2603.4,2603.3,0.00576026]
[1723889312590,1.44009,2603.4,2602.9,0.7306]
[1723889312591,1.44026,2603.1,2602.9,0.7306]
[1723889312795,3.6256709,2603.0,2602.9,0.7306]
[1723889313293,3.6256709,2603.0,2602.9,4.5722]
[1723889313483,3.6256709,2603.0,2602.9,0.73417208]
[1723889314689,1.106,2603.0,2602.9,0.73417208]
[1723889316593,3.11949007,2603.0,2602.9,0.73417208]
[1723889317488,4.55980007,2603.0,2602.9,0.73417208]
[1723889318594,5.0659809,2603.0,2602.9,0.73417208]
[1723889321590,2.54631,2603.0,2602.9,0.73417208]
[1723889322489,4.55800514,2603.0,2602.9,0.73417208]
[1723889323497,2.54631,2603.0,2602.9,0.73417208]
[1723889324400,8.9075809,2603.0,2602.9,0.00357208]
[1723889324699,6.38791,2603.0,2602.9,0.00357208]
[1723889324995,6.38791,2603.0,2602.9,0.69557208]
[1723889325694,8.39891587,2603.0,2602.9,0.69557208]
[1723889326799,6.38791,2603.0,2602.9,0.69557208]
[1723889327094,8.39879727,2603.0,2602.9,0.69557208]
[1723889328694,4.55719727,2603.0,2602.9,0.69557208]
[1723889329097,8.39879727,2603.0,2602.9,0.69557208]
[1723889329892,4.55719727,2603.0,2602.9,0.69557208]
[1723889330094,8.39879727,2603.0,2602.9,0.69557208]
[1723889330302,4.55719727,2603.0,2602.9,0.69557208]
[1723889335908,4.55719727,2603.0,2602.9,0.35287208]
[1723889336806,4.90329727,2603.0,2602.9,0.35287208]
[1723889337208,2.89241,2603.0,2602.9,0.35287208]
[1723889337409,1.44043,2602.8,2602.7,0.00576026]
[1723889337604,1.44043,2602.8,2602.5,0.3695]
[1723889337605,1.44054,2602.6,2602.5,0.3695]
[1723889337910,5.75434,2602.6,2602.5,0.3695]
[1723889338501,5.75434,2602.6,2602.5,0.37233428]
[1723889339601,7.26195064,2602.6,2602.5,0.37233428]
[1723889340002,4.05415064,2602.6,2602.5,0.37233428]
[1723889340206,2.61361064,2602.6,2602.5,0.37233428]
[1723889341111,4.05415064,2602.6,2602.5,0.37233428]
[1723889343713,2.54654,2602.6,2602.5,0.37233428]
[1723889345411,4.05389444,2602.6,2602.5,0.37233428]
[1723889346106,2.54654,2602.6,2602.5,0.37233428]
[1723889347109,2.90014,2602.6,2602.5,0.37233428]
[1723889347709,1.44065,2602.4,2602.3,0.00387858]
[1723889348011,4.55645502,2602.4,2602.3,0.00387858]
[1723889348316,5.75445,2602.4,2602.3,0.00387858]
[1723889348822,7.76377624,2602.4,2602.3,0.0075325]
[1723889349310,5.75445,2602.4,2602.3,0.0075325]
[1723889349517,7.76340727,2602.4,2602.3,0.0075325]
[1723889349711,5.75445,2602.4,2602.3,0.0075325]
[1723889349905,7.76351341,2602.4,2602.3,0.0075325]
[1723889353109,5.75445,2602.4,2602.3,0.0075325]
[1723889354009,8.2741209,2602.4,2602.3,0.0075325]
[1723889354303,1.44076,2602.2,2602.1,0.3479]
[1723889354512,2.54676,2602.2,2602.1,0.3479]
[1723889355303,4.05348087,2602.2,2602.1,0.35140496]
[1723889357017,2.54676,2602.2,2602.1,0.35140496]
[1723889361314,8.39891476,2602.2,2602.1,0.00350496]
[1723889361515,8.39860667,2602.2,2602.1,0.00350496]
[1723889361720,6.38996,2602.2,2602.1,0.00350496]
[1723889362316,8.39859592,2602.2,2602.1,0.00350496]
[1723889363519,4.55539592,2602.2,2602.1,0.00350496]
[1723889366917,7.76319592,2602.2,2602.1,0.00350496]
[1723889369317,1.44098,2601.8,2601.6,1.0897]
[1723889369518,1.106,2601.7,2601.6,1.0897]
[1723889369824,2.61212721,2601.7,2601.6,1.0897]
[1723889370426,1.50927981,2601.7,2601.6,1.09386466]
[1723889370628,1.1091526,2601.7,2601.6,1.09386466]
[1723889370820,0.0031526,2601.7,2601.6,1.09386466]
[1723889371025,1.1091526,2601.7,2601.6,1.09386466]
[1723889375929,2.5501926,2601.7,2601.6,1.09386466]
[1723889376923,2.5501926,2601.7,2601.6,0.73146466]
[1723889377125,4.42581981,2601.7,2601.6,0.73146466]
[1723889378537,4.05631981,2601.7,2601.6,0.73146466]
[1723889379331,2.5501926,2601.7,2601.6,0.73146466]
[1723889379737,2.9134926,2601.7,2601.6,0.73146466]
[1723889379934,3.2702926,2601.7,2601.6,0.73146466]
[1723889380527,7.1142926,2601.7,2601.6,0.00416466]
[1723889381038,1.4412,2601.4,2601.3,0.7068]
[1723889381233,2.5472,2601.4,2601.3,0.7068]
[1723889381740,1.106,2601.4,2600.5,3.2078]
[1723889381941,1.106,2601.4,2600.8,0.7068]
[1723889381942,3.2078,2601.1,2600.8,0.7068]
[1723889382734,3.2078,2601.1,2600.8,4.5516]
[1723889382942,1.106,2600.9,2600.8,4.5516]
[1723889390647,1.4414,2601.1,2600.8,4.5516]
[1723889390852,6.73565671,2601.5,2600.9,7.0526]
[1723889391153,1.106,2601.3,2601.2,3.2078]
[1723889391645,1.106,2601.3,2601.2,7.0518]
[1723889391856,1.106,2601.3,2601.2,7.3999]
[1723889392849,1.106,2601.3,2601.2,4.1921]
[1723889400570,1.106,2601.3,2601.2,0.3481]
[1723889400752,1.106,2601.3,2601.2,4.1921]
[1723889401065,2.61421747,2601.3,2601.2,4.1921]
[1723889401362,2.61421747,2601.3,2601.2,0.3481]
[1723889402762,1.106,2601.3,2601.2,0.3481]
[1723889402965,1.106,2601.3,2601.2,4.1921]
[1723889403468,1.106,2601.3,2601.2,5.63341]
[1723889403855,1.106,2601.3,2601.2,4.1921]
[1723889404455,1.51397773,2601.6,2601.3,1.44126]
[1723889404763,1.106,2601.5,2601.4,0.3565]
[1723889404968,1.106,2601.5,2601.4,0.7251]
[1723889405163,1.106,2601.5,2601.4,4.5691]
[1723889406565,1.51397773,2601.6,2601.4,4.5691]
[1723889406768,1.106,2601.5,2601.4,0.7251]
[1723889407171,1.106,2601.5,2601.4,4.5691]
[1723889408467,1.106,2601.5,2601.4,0.7251]
[1723889410573,1.106,2601.5,2601.4,1.73147168]
[1723889410874,1.106,2601.5,2601.4,5.57547168]
[1723889411174,1.106,2601.5,2601.4,1.73147168]
[1723889411773,2.61421747,2601.5,2601.4,1.73147168]
[1723889411980,1.106,2601.5,2601.4,1.73147168]
[1723889412268,1.106,2601.5,2601.4,5.57547168]
[1723889414265,2.61421747,2601.5,2601.4,5.57547168]
[1723889415068,1.106,2601.5,2601.4,4.5691]
[1723889415268,2.61618513,2601.5,2601.4,4.5691]
[1723889415468,2.61618513,2601.5,2601.4,5.57547168]
[1723889415669,2.61618513,2601.5,2601.4,4.5691]
[1723889415870,1.106,2601.5,2601.4,4.5691]
[1723889416068,2.6162131,2601.5,2601.4,4.5691]
[1723889416368,2.6162131,2601.5,2601.4,5.57547168]
[1723889416572,2.6162131,2601.5,2601.4,1.37497168]
[1723889416881,3.3383131,2601.5,2601.4,1.00637168]
[1723889417174,1.44126,2601.3,2601.1,1.00637168]
[1723889417379,0.3556,2601.2,2601.0,1.00637168]
[1723889417579,2.61582335,2601.1,2601.0,1.00637168]
[1723889417880,1.106,2601.1,2601.0,1.00637168]
[1723889418083,2.61582335,2601.1,2601.0,1.00637168]
[1723889418375,2.61582335,2601.1,2600.9,1.72497168]
[1723889420676,2.61582335,2601.1,2600.9,0.7186]
[1723889420866,2.95932335,2601.1,2600.9,0.7186]
[1723889421069,1.50982335,2601.0,2600.9,0.7186]
[1723889421269,4.76199335,2601.1,2600.9,0.7186]
[1723889421476,3.32062335,2601.1,2600.9,0.7186]
[1723889421779,4.76199335,2601.1,2600.9,0.7186]
[1723889422075,1.50982335,2601.0,2600.9,0.7186]
[1723889423178,2.95124335,2601.0,2600.9,0.7186]
[1723889423881,1.44152,2600.9,2600.7,1.38427168]
[1723889424181,1.106,2600.8,2600.7,0.7467]
[1723889424378,1.106,2600.8,2600.7,4.5915]
[1723889425876,1.106,2600.8,2600.7,0.7467]
[1723889426076,1.106,2600.8,2600.7,0.3688]
[1723889426281,1.4529,2600.8,2600.7,0.3688]
[1723889426678,1.106,2600.8,2600.7,0.3688]
[1723889427882,1.50982335,2601.0,2600.8,1.4415]
[1723889428077,1.106,2601.0,2600.9,0.3433]
[1723889436983,1.106,2601.0,2600.7,2.81673168]
[1723889436984,4.05725335,2601.0,2600.7,0.3688]
[1723889437189,1.106,2600.8,2600.7,0.3688]
[1723889437879,2.54753,2600.8,2600.7,0.3688]
[1723889438189,1.106,2600.8,2600.7,0.3688]
[1723889438785,1.106,2600.8,2600.6,0.356]
[1723889438979,1.106,2600.8,2600.6,0.7058]
[1723889439184,2.54757,2600.8,2600.6,0.7058]
[1723889440083,2.91817,2600.8,2600.6,0.7058]
[1723889440481,4.42799335,2600.8,2600.6,0.7058]
[1723889441088,4.05739335,2600.8,2600.6,0.7058]
[1723889441990,4.05739335,2600.8,2600.5,0.00468698]
[1723889442193,1.106,2600.6,2600.5,0.00468698]
[1723889442786,1.7995,2600.9,2600.5,0.00468698]
[1723889442787,5.07562335,2600.9,2600.5,4.21318698]
[1723889442986,1.106,2600.6,2600.5,0.36758698]
[1723889443390,1.106,2600.6,2600.5,4.21318698]
[1723889451089,1.106,2600.6,2600.5,0.36758698]
[1723889451696,1.106,2600.6,2600.5,4.21318698]
[1723889451896,1.106,2600.6,2600.5,0.36758698]
[1723889453292,1.106,2600.6,2600.5,4.21318698]
[1723889453483,1.106,2600.6,2600.5,0.36758698]
[1723889460392,1.106,2600.6,2600.5,1.80928698]
[1723889460591,1.106,2600.6,2600.5,0.36758698]
[1723889462302,1.106,2600.6,2600.5,1.37395866]
[1723889465194,1.106,2600.6,2600.5,2.81565866]
[1723889466297,1.106,2600.6,2600.5,1.37395866]
[1723889466801,1.106,2600.6,2600.5,2.81565866]
[1723889467187,1.106,2600.6,2600.5,1.37395866]
[1723889468401,1.106,2600.6,2600.5,3.2964215]
[1723889469400,1.50982335,2600.7,2600.6,1.44164]
[1723889469606,1.50982335,2601.0,2600.8,1.44153]
[1723889469905,2.61582335,2601.0,2600.9,1.44148]
[1723889470101,1.106,2601.0,2600.9,1.80198]
[1723889470301,2.61458471,2601.0,2600.9,1.80198]
[1723889470507,1.106,2601.0,2600.9,0.3605]
[1723889473305,2.61455463,2601.0,2600.9,0.3605]
[1723889473498,1.106,2601.0,2600.9,0.3605]
[1723889475508,2.61451595,2601.0,2600.9,0.3605]
[1723889477110,1.106,2601.0,2600.9,0.3605]
[1723889477610,2.61488887,2601.0,2600.9,1.80198]
[1723889477910,2.61491076,2601.0,2600.9,1.80198]
[1723889478214,2.61491076,2601.0,2600.9,2.80951496]
[1723889478410,2.61491076,2601.0,2600.9,1.36803496]
[1723889478607,1.50891076,2601.0,2600.9,6.65431496]
[1723889478804,2.37470016,2601.2,2601.1,1.44137]
[1723889478805,1.50891076,2601.2,2601.1,1.44137]
[1723889479005,1.106,2601.3,2601.2,1.44131]
[1723889479309,1.106,2601.3,2601.1,1.44134]
[1723889479310,3.11930016,2601.3,2601.1,1.44134]
[1723889479509,2.61501785,2601.2,2601.1,1.44134]
[1723889480005,1.106,2601.2,2601.1,2.44871282]
[1723889480612,1.106,2601.2,2601.1,1.44134]
[1723889481006,1.106,2601.2,2601.0,2.44876282]
[1723889481623,1.106,2601.2,2601.1,1.44137]
[1723889482105,1.106,2601.2,2601.1,5.28617]
[1723889483106,1.106,2601.2,2601.1,1.78997]
[1723889483305,1.106,2601.2,2601.1,5.63477]
[1723889483510,1.106,2601.2,2601.1,1.78997]
[1723889483709,1.106,2601.2,2601.1,5.63477]
[1723889486513,1.106,2601.2,2601.1,5.98367]
[1723889487319,1.50901785,2601.4,2601.3,1.44126]
[1723889487721,2.61501785,2601.4,2601.3,1.44126]
[1723889487909,2.61501785,2601.4,2601.2,1.44128]
[1723889488114,1.106,2601.3,2601.2,1.44128]
[1723889488907,1.106,2601.3,2601.2,5.28528]
[1723889489124,1.106,2601.3,2601.2,1.44128]
[1723889489415,1.106,2601.3,2601.2,5.28528]
[1723889489617,1.106,2601.3,2601.2,1.44128]
[1723889489813,1.106,2601.3,2601.2,5.28528]
[1723889490018,1.106,2601.3,2601.2,1.44128]
[1723889490220,1.106,2601.3,2601.1,2.13884]
[1723889490722,1.106,2601.3,2601.2,1.44131]
[1723889492123,1.106,2601.3,2601.2,1.80191]
[1723889493915,1.106,2601.3,2601.2,5.64591]
[1723889494214,1.106,2601.3,2601.2,1.80191]
[1723889494420,1.106,2601.3,2601.2,5.64591]
[1723889494621,1.106,2601.3,2601.2,1.80191]
[1723889494824,1.106,2601.3,2601.2,5.64591]
[1723889496421,1.106,2601.3,2601.2,1.80191]
[1723889501020,1.106,2601.3,2601.2,0.3606]
[1723889504528,1.106,2601.3,2601.2,1.80191]
[1723889506724,1.106,2601.4,2601.3,1.44126]
[1723889506923,1.88387811,2601.6,2601.3,1.44126]
[1723889507227,1.51477811,2601.6,2601.4,1.44116]
[1723889507430,0.00576026,2601.6,2601.5,2.13515]
[1723889507631,0.00576026,2601.6,2601.5,0.694]
[1723889507824,0.00576026,2601.6,2601.5,4.538]
[1723889508023,0.00576026,2601.6,2601.5,4.9041]
[1723889513637,0.00576026,2601.6,2601.5,6.34525]
[1723889513836,0.00576026,2601.6,2601.5,4.9041]
[1723889517132,0.00576026,2601.6,2601.5,6.34525]
[1723889517441,0.00576026,2601.6,2601.5,2.50125]
[1723889517738,0.00576026,2601.6,2601.5,3.50862282]
[1723889519729,0.00576026,2601.6,2601.5,9.37292695]
[1723889519936,0.00576026,2601.6,2601.5,10.88422939]
[1723889520440,0.0031526,2601.7,2601.6,1.44111]
[1723889520643,0.0031526,2601.7,2601.6,8.71626465]
[1723889521542,0.0031526,2601.7,2601.6,7.20678695]
[1723889522040,0.0031526,2601.7,2601.6,7.20651513]
[1723889522334,0.00576026,2601.9,2601.8,1.441]
[1723889522541,0.00576026,2601.9,2601.8,7.67620513]
[1723889522729,0.00576026,2601.9,2601.8,5.7548]
[1723889523041,0.00576026,2601.9,2601.8,6.0163466]
[1723889523238,0.0097871,2601.9,2601.8,6.01635463]
[1723889523542,0.0097871,2601.9,2601.8,6.01634592]
[1723889523940,0.0097871,2601.9,2601.8,5.01]
[1723889524642,0.0097871,2601.9,2601.8,6.0162447]
[1723889524942,0.0097871,2601.9,2601.8,5.01]
[1723889525242,0.0097871,2601.9,2601.8,6.01624431]
[1723889526043,0.0097871,2601.9,2601.8,4.57524431]
[1723889527747,0.0097871,2601.9,2601.8,3.569]
[1723889528347,0.0097871,2601.9,2601.8,5.01002]
[1723889529041,0.0097871,2601.9,2601.8,6.11602]
[1723889530540,0.0097871,2601.9,2601.8,9.95922]
[1723889530845,0.0097871,2601.9,2601.8,10.96546431]
[1723889531745,0.0097871,2601.9,2601.8,6.11602]
[1723889532646,0.0097871,2601.9,2601.8,2.90822]
[1723889532840,0.0097871,2601.9,2601.8,1.80222]
[1723889533442,0.0097871,2601.9,2601.8,5.64542]
[1723889533638,0.0097871,2601.9,2601.8,1.80222]
[1723889534362,0.0097871,2601.9,2601.8,5.64542]
[1723889534564,0.0097871,2601.9,2601.8,1.80222]
[1723889535070,0.0097871,2601.9,2601.8,2.80846431]
[1723889535378,0.0097871,2601.9,2601.8,1.80222]
[1723889541670,0.0097871,2601.9,2601.8,2.90822]
[1723889542571,0.0097871,2601.9,2601.8,3.91446431]
[1723889544170,2.61501785,2602.4,2602.2,1.44077]
[1723889544374,2.61501785,2602.4,2602.3,0.7068]
[1723889544375,1.106,2602.4,2602.3,0.7068]
[1723889544973,2.21821785,2602.6,2602.3,1.8128]
[1723889545175,0.3606,2602.6,2602.5,1.106]
[1723889545476,0.36426974,2602.6,2602.5,1.11098152]
[1723889548273,0.00366974,2602.6,2602.5,1.11098152]
[1723889549572,0.00366974,2602.6,2602.5,0.00498152]
[1723889550669,0.00366974,2602.6,2602.5,1.11098152]
[1723889558689,0.00366974,2602.6,2602.5,0.00498152]
[1723889559092,0.36506974,2602.6,2602.5,0.00498152]
[1723889562383,4.20746974,2602.6,2602.5,0.00498152]
[1723889563681,0.36506974,2602.6,2602.5,0.00498152]
[1723889563888,4.20746974,2602.6,2602.5,0.00498152]
[1723889566384,0.36506974,2602.6,2602.5,0.00498152]
[1723889567587,0.00366974,2602.6,2602.5,0.00498152]
[1723889568393,0.00366974,2602.6,2602.5,1.44561152]
[1723889568694,0.00366974,2602.6,2602.5,1.80651152]
[1723889569091,0.00366974,2602.6,2602.5,0.36588152]
[1723889569479,0.00366974,2602.6,2602.5,0.00498152]
[1723889570185,0.37176974,2602.6,2602.5,0.00498152]
[1723889570691,0.37176974,2602.6,2602.5,1.11098152]
[1723889570692,0.00366974,2602.6,2602.5,1.11098152]
[1723889573990,0.00366974,2602.6,2602.5,2.55161152]
[1723889574895,0.00366974,2602.6,2602.5,1.11098152]
[1723889576285,0.00366974,2602.6,2602.5,0.00498152]
[1723889576490,0.00366974,2602.6,2602.5,1.11098152]
[1723889577987,0.00366974,2602.6,2602.5,2.55161152]
[1723889578693,0.00366974,2602.6,2602.5,1.11098152]
[1723889584294,0.00366974,2602.6,2602.5,2.55161152]
[1723889584603,0.00366974,2602.6,2602.5,3.55785583]
[1723889586003,0.00366974,2602.6,2602.5,2.11722583]
[1723889586302,0.00366974,2602.6,2602.5,3.55785583]
[1723889586505,0.00366974,2602.6,2602.5,5.47879881]
[1723889587700,1.51268759,2602.6,2602.5,5.98213395]
[1723889588410,1.51268759,2602.6,2602.5,4.4725545]
[1723889588610,1.51268759,2602.6,2602.5,5.98213395]
[1723889589001,1.51268759,2602.6,2602.5,5.98213929]
[1723889590210,1.51268759,2602.6,2602.5,4.54150929]
[1723889590508,2.0169699,2602.6,2602.5,3.03192984]
[1723889590707,2.0169699,2602.6,2602.5,4.54150929]
[1723889590905,2.01947736,2602.6,2602.5,1.11098152]
[1723889591108,2.01947736,2602.6,2602.5,4.04024891]
[1723889591405,2.01947736,2602.6,2602.5,4.5417405]
[1723889593804,2.01947736,2602.6,2602.5,4.54161055]
[1723889594004,2.01947736,2602.6,2602.5,5.98224055]
[1723889595109,0.00366974,2602.6,2602.5,5.98224055]
[1723889595809,2.01947736,2602.6,2602.5,5.98224055]
[1723889598300,2.01947736,2602.6,2602.5,5.98221838]
[1723889599103,2.01947736,2602.6,2602.5,1.92600893]
[1723889599299,2.01947736,2602.6,2602.5,3.43558838]
[1723889602904,2.01947736,2602.6,2602.5,3.43562117]
[1723889604708,2.01947736,2602.6,2602.5,4.54162117]
[1723889607507,2.01947736,2602.6,2602.5,4.54159832]
[1723889607817,2.01947736,2602.6,2602.5,5.98222832]
[1723889608703,2.01947736,2602.6,2602.5,5.98223517]
[1723889610014,2.01947736,2602.6,2602.5,4.54160517]
[1723889612017,2.01947736,2602.6,2602.5,2.62056097]
[1723889612218,2.01947736,2602.6,2602.5,4.54160935]
[1723889616820,2.01947736,2602.6,2602.5,4.54164198]
[1723889617020,2.01947736,2602.6,2602.5,5.98227198]
[1723889621020,2.01947736,2602.6,2602.5,4.54164198]
[1723889621315,2.01947736,2602.6,2602.5,4.54162052]
[1723889627925,2.01947736,2602.6,2602.5,5.98225052]
[1723889628816,2.01947736,2602.6,2602.5,4.54162052]
[1723889630821,2.01947736,2602.6,2602.5,4.54158933]
[1723889632526,2.01947736,2602.6,2602.5,5.98221933]
[1723889633927,2.01947736,2602.6,2602.5,4.54158933]
[1723889635435,2.01947736,2602.6,2602.5,4.54156926]
[1723889635623,2.01947736,2602.6,2602.5,5.98219926]
[1723889636023,2.01947736,2602.6,2602.5,5.98505493]
[1723889636328,2.01947736,2602.6,2602.5,4.54442493]
[1723889637527,0.00366974,2602.6,2602.5,4.54446424]